Workbook

Sheet HEDEFLER
B1: =TODAY() -> 2017-05-09 | C1: HEDEFLER | J1: Egzersiz | K1: Beslenme
B2: BAŞLANGIÇ TARİHİ | C2: BESLENME VE EGZERSİZ GÜNLÜĞÜ
B3: =BaşlangıçTarihi+121 -> 2017-09-07 | C3: BESLENME ANALİZİ
B5: BİTİŞ TARİHİ
B6: 100.00
B7: BAŞLANGIÇTAKİ KİLO
B8: 80.00 | C8: EGZERSİZ ANALİZİ
B10: SON KİLO
B11: =BaşlangıçtakiKilo-SonKilo -> 20
B12: HEDEFLENEN KİLO KAYBI
B13: =BitişTarihi-BaşlangıçTarihi -> 121
B14: HEDEFLENEN GÜN SAYISI
B15: =HedeflenenKilo/B13 -> 0.17
B16: GÜNLÜK KİLO KAYBI

Sheet BESLENME
B1: BESLENME | G1: Hedefler | H1: Egzersiz
B2: =Alt_Başlık -> BESLENME VE EGZERSİZ GÜNLÜĞÜ
B3: TARİH | C3: SAAT | D3: AÇIKLAMA | E3: KALORİ | F3: KARBONHİDRAT | G3: PROTEİN | H3: YAĞ | I3: NOTLAR
B4: =BaşlangıçTarihi -> 2017-05-09 | C4: 07:00:00 | D4: Kahve | E4: 1 | F4: 0 | G4: 0 | H4: 0 | I4: Sabah kahvesi
B5: =BaşlangıçTarihi -> 2017-05-09 | C5: 08:00:00 | D5: Simit | E5: 10 | F5: 10 | G5: 2 | H5: 10 | I5: Hafif kahvaltı
B6: =BaşlangıçTarihi -> 2017-05-09 | C6: 12:00:00 | D6: Öğle Yemeği | E6: 283 | F6: 46 | G6: 18 | H6: 4 | I6: Hindili sandviç
B7: =BaşlangıçTarihi -> 2017-05-09 | C7: 19:00:00 | D7: Akşam Yemeği | E7: 500 | F7: 42 | G7: 35 | H7: 25 | I7: Fırında et
B8: =BaşlangıçTarihi+1 -> 2017-05-10 | C8: 07:00:00 | D8: Kahve | E8: 1 | F8: 0 | G8: 0 | H8: 0 | I8: Sabah kahvesi
B9: =BaşlangıçTarihi+1 -> 2017-05-10 | C9: 08:00:00 | D9: Tost | E9: 10 | F9: 10 | G9: 2 | H9: 10 | I9: Hafif kahvaltı
B10: =BaşlangıçTarihi+1 -> 2017-05-10 | C10: 12:00:00 | D10: Öğle Yemeği | E10: 189 | F10: 26 | G10: 3 | H10: 8 | I10: Sandviç
B11: =BaşlangıçTarihi+1 -> 2017-05-10 | C11: 19:00:00 | D11: Akşam Yemeği | E11: 477 | F11: 62 | G11: 14 | H11: 21 | I11: Akşam Yemeği
B12: =BaşlangıçTarihi+2 -> 2017-05-11 | C12: 07:00:00 | D12: Kahve | E12: 1 | F12: 0 | G12: 0 | H12: 0 | I12: Sabah kahvesi
B13: =BaşlangıçTarihi+2 -> 2017-05-11 | C13: 08:00:00 | D13: Simit | E13: 245 | F13: 48 | G13: 10 | H13: 2 | I13: Hafif kahvaltı
B14: =BaşlangıçTarihi+2 -> 2017-05-11 | C14: 12:00:00 | D14: Öğle Yemeği | E14: 247 | F14: 11 | G14: 43 | H14: 5 | I14: Salata
B15: =BaşlangıçTarihi+2 -> 2017-05-11 | C15: 19:00:00 | D15: Akşam Yemeği | E15: 456 | F15: 64 | G15: 32 | H15: 22 | I15: Akşam Yemeği
B16: =BaşlangıçTarihi+3 -> 2017-05-12 | C16: 07:00:00 | D16: Tost | E16: 10 | F16: 10 | G16: 2 | H16: 10 | I16: Hafif kahvaltı
B17: =BaşlangıçTarihi+3 -> 2017-05-12 | C17: 10:00:00 | D17: Kahve | E17: 135 | F17: 12 | G17: 9 | H17: 6 | I17: Latte
B18: =BaşlangıçTarihi+3 -> 2017-05-12 | C18: 12:15:00 | D18: Öğle Yemeği | E18: 184 | F18: 7 | G18: 5 | H18: 15 | I18: Salata
B19: =BaşlangıçTarihi+5 -> 2017-05-14 | C19: 19:00:00 | D19: Akşam Yemeği | E19: 477 | F19: 62 | G19: 14 | H19: 21 | I19: Akşam Yemeği

Sheet EGZERSİZ
B1: EGZERSİZ | F1: Beslenme | G1: Hedefler
B2: =Alt_Başlık -> BESLENME VE EGZERSİZ GÜNLÜĞÜ
B3: TARİH | C3: SÜRE (DAKİKA) | D3: YAKILAN KALORİ | E3: NOTLAR
B4: =BaşlangıçTarihi+4 -> 2017-05-13 | C4: 30 | D4: 120 | E4: Koşu bandı egzersizi
B5: =B4+1 -> 2017-05-14 | C5: 60 | D5: 180 | E5: Düşük etkili aerobik
B6: =B5+1 -> 2017-05-15 | C6: 60 | D6: 350 | E6: İleri düzey egzersiz
B7: 2017-05-16 | C7: 30 | D7: 150 | E7: Koşu bandı egzersizi
B8: 2017-05-17 | C8: 25 | D8: 125 | E8: Koşu
B9: 2017-05-18 | C9: 20 | D9: 285 | E9: Koşu bandı egzersizi
B10: 2017-05-19 | C10: 40 | D10: 205 | E10: Koşu
B11: 2017-05-20 | C11: 30 | D11: 335 | E11: Koşu
B12: 2017-05-21 | C12: 40 | D12: 175 | E12: Koşu
B13: 2017-05-22 | C13: 45 | D13: 325 | E13: Koşu bandı egzersizi
B14: 2017-05-23 | C14: 40 | D14: 270 | E14: Koşu
B15: 2017-05-24 | C15: 20 | D15: 295 | E15: Koşu bandı egzersizi
B16: 2017-05-25 | C16: 45 | D16: 350 | E16: Koşu
B17: 2017-05-26 | C17: 35 | D17: 320 | E17: Koşu
B18: 2017-05-27 | C18: 40 | D18: 290 | E18: Koşu
B19: =B18+1 -> 2017-05-28 | C19: 25 | D19: 265 | E19: Koşu bandı egzersizi
B20: 2017-05-29 | C20: 20 | D20: 195 | E20: Koşu

Sheet Grafik Hesaplamaları (hidden)
B2: BESLENME ANALİZİ GRAFİK VERİLERİ
B4: Başlangıçta satırı | C4: =ROW(Beslenme[[#Headers],[TARİH]])+1 -> 4 | D4: TARİH | E4: GÜN | F4: YAĞ | G4: PROTEİN | H4: KARBONHİDRAT | I4: KALORİ | J4: Sayı
B5: Son beslenme girdisi | C5: =MATCH(9.99E+307,Beslenme[TARİH])+BeslenmeSatırBaşlangıcı-1 -> 19 | D5: =IFERROR(IF(INDEX(Beslenme[],BeslenmeSonu-BeslenmeSatırBaşlangıcı-J5,1)<>"",INDEX(Beslenme[],BeslenmeSonu-BeslenmeSatırBaşlangıcı-J5,1),""),"") -> 2017-05-09 | E5: =UPPER(TEXT(D5,"GGG")) -> SAL | F5: =IFERROR((IF(INDEX(Beslenme[],BeslenmeSonu-BeslenmeSatırBaşlangıcı-J5,1)<>"",INDEX(Beslenme[],BeslenmeSonu-BeslenmeSatırBaşlangıcı-J5,7),NA())),NA()) -> 3.5 | G5: =IFERROR((IF(INDEX(Beslenme[],BeslenmeSonu-BeslenmeSatırBaşlangıcı-J5,1)<>"",INDEX(Beslenme[],BeslenmeSonu-BeslenmeSatırBaşlangıcı-J5,6),NA())),NA()) -> 18 | H5: =IFERROR((IF(INDEX(Beslenme[],BeslenmeSonu-BeslenmeSatırBaşlangıcı-J5,1)<>"",INDEX(Beslenme[],BeslenmeSonu-BeslenmeSatırBaşlangıcı-J5,5),NA())),NA()) -> 46 | I5: =IFERROR((IF(INDEX(Beslenme[],BeslenmeSonu-BeslenmeSatırBaşlangıcı-J5,1)<>"",INDEX(Beslenme[],BeslenmeSonu-BeslenmeSatırBaşlangıcı-J5,4),NA())),NA()) -> 283 | J5: 12
D6: =IFERROR(IF(INDEX(Beslenme[],BeslenmeSonu-BeslenmeSatırBaşlangıcı-J6,1)<>"",INDEX(Beslenme[],BeslenmeSonu-BeslenmeSatırBaşlangıcı-J6,1),""),"") -> 2017-05-09 | E6: =UPPER(TEXT(D6,"GGG")) -> SAL | F6: =IFERROR((IF(INDEX(Beslenme[],BeslenmeSonu-BeslenmeSatırBaşlangıcı-J6,1)<>"",INDEX(Beslenme[],BeslenmeSonu-BeslenmeSatırBaşlangıcı-J6,7),NA())),NA()) -> 25 | G6: =IFERROR((IF(INDEX(Beslenme[],BeslenmeSonu-BeslenmeSatırBaşlangıcı-J6,1)<>"",INDEX(Beslenme[],BeslenmeSonu-BeslenmeSatırBaşlangıcı-J6,6),NA())),NA()) -> 35 | H6: =IFERROR((IF(INDEX(Beslenme[],BeslenmeSonu-BeslenmeSatırBaşlangıcı-J6,1)<>"",INDEX(Beslenme[],BeslenmeSonu-BeslenmeSatırBaşlangıcı-J6,5),NA())),NA()) -> 42 | I6: =IFERROR((IF(INDEX(Beslenme[],BeslenmeSonu-BeslenmeSatırBaşlangıcı-J6,1)<>"",INDEX(Beslenme[],BeslenmeSonu-BeslenmeSatırBaşlangıcı-J6,4),NA())),NA()) -> 500 | J6: 11
D7: =IFERROR(IF(INDEX(Beslenme[],BeslenmeSonu-BeslenmeSatırBaşlangıcı-J7,1)<>"",INDEX(Beslenme[],BeslenmeSonu-BeslenmeSatırBaşlangıcı-J7,1),""),"") -> 2017-05-10 | E7: ÇAR | F7: =IFERROR((IF(INDEX(Beslenme[],BeslenmeSonu-BeslenmeSatırBaşlangıcı-J7,1)<>"",INDEX(Beslenme[],BeslenmeSonu-BeslenmeSatırBaşlangıcı-J7,7),NA())),NA()) -> 0 | G7: =IFERROR((IF(INDEX(Beslenme[],BeslenmeSonu-BeslenmeSatırBaşlangıcı-J7,1)<>"",INDEX(Beslenme[],BeslenmeSonu-BeslenmeSatırBaşlangıcı-J7,6),NA())),NA()) -> 0 | H7: =IFERROR((IF(INDEX(Beslenme[],BeslenmeSonu-BeslenmeSatırBaşlangıcı-J7,1)<>"",INDEX(Beslenme[],BeslenmeSonu-BeslenmeSatırBaşlangıcı-J7,5),NA())),NA()) -> 0 | I7: =IFERROR((IF(INDEX(Beslenme[],BeslenmeSonu-BeslenmeSatırBaşlangıcı-J7,1)<>"",INDEX(Beslenme[],BeslenmeSonu-BeslenmeSatırBaşlangıcı-J7,4),NA())),NA()) -> 1 | J7: 10
D8: =IFERROR(IF(INDEX(Beslenme[],BeslenmeSonu-BeslenmeSatırBaşlangıcı-J8,1)<>"",INDEX(Beslenme[],BeslenmeSonu-BeslenmeSatırBaşlangıcı-J8,1),""),"") -> 2017-05-10 | E8: ÇAR | F8: =IFERROR((IF(INDEX(Beslenme[],BeslenmeSonu-BeslenmeSatırBaşlangıcı-J8,1)<>"",INDEX(Beslenme[],BeslenmeSonu-BeslenmeSatırBaşlangıcı-J8,7),NA())),NA()) -> 10 | G8: =IFERROR((IF(INDEX(Beslenme[],BeslenmeSonu-BeslenmeSatırBaşlangıcı-J8,1)<>"",INDEX(Beslenme[],BeslenmeSonu-BeslenmeSatırBaşlangıcı-J8,6),NA())),NA()) -> 2 | H8: =IFERROR((IF(INDEX(Beslenme[],BeslenmeSonu-BeslenmeSatırBaşlangıcı-J8,1)<>"",INDEX(Beslenme[],BeslenmeSonu-BeslenmeSatırBaşlangıcı-J8,5),NA())),NA()) -> 10 | I8: =IFERROR((IF(INDEX(Beslenme[],BeslenmeSonu-BeslenmeSatırBaşlangıcı-J8,1)<>"",INDEX(Beslenme[],BeslenmeSonu-BeslenmeSatırBaşlangıcı-J8,4),NA())),NA()) -> 10 | J8: 9
D9: =IFERROR(IF(INDEX(Beslenme[],BeslenmeSonu-BeslenmeSatırBaşlangıcı-J9,1)<>"",INDEX(Beslenme[],BeslenmeSonu-BeslenmeSatırBaşlangıcı-J9,1),""),"") -> 2017-05-10 | E9: ÇAR | F9: =IFERROR((IF(INDEX(Beslenme[],BeslenmeSonu-BeslenmeSatırBaşlangıcı-J9,1)<>"",INDEX(Beslenme[],BeslenmeSonu-BeslenmeSatırBaşlangıcı-J9,7),NA())),NA()) -> 8 | G9: =IFERROR((IF(INDEX(Beslenme[],BeslenmeSonu-BeslenmeSatırBaşlangıcı-J9,1)<>"",INDEX(Beslenme[],BeslenmeSonu-BeslenmeSatırBaşlangıcı-J9,6),NA())),NA()) -> 3 | H9: =IFERROR((IF(INDEX(Beslenme[],BeslenmeSonu-BeslenmeSatırBaşlangıcı-J9,1)<>"",INDEX(Beslenme[],BeslenmeSonu-BeslenmeSatırBaşlangıcı-J9,5),NA())),NA()) -> 26 | I9: =IFERROR((IF(INDEX(Beslenme[],BeslenmeSonu-BeslenmeSatırBaşlangıcı-J9,1)<>"",INDEX(Beslenme[],BeslenmeSonu-BeslenmeSatırBaşlangıcı-J9,4),NA())),NA()) -> 189 | J9: 8
D10: =IFERROR(IF(INDEX(Beslenme[],BeslenmeSonu-BeslenmeSatırBaşlangıcı-J10,1)<>"",INDEX(Beslenme[],BeslenmeSonu-BeslenmeSatırBaşlangıcı-J10,1),""),"") -> 2017-05-10 | E10: ÇAR | F10: =IFERROR((IF(INDEX(Beslenme[],BeslenmeSonu-BeslenmeSatırBaşlangıcı-J10,1)<>"",INDEX(Beslenme[],BeslenmeSonu-BeslenmeSatırBaşlangıcı-J10,7),NA())),NA()) -> 21 | G10: =IFERROR((IF(INDEX(Beslenme[],BeslenmeSonu-BeslenmeSatırBaşlangıcı-J10,1)<>"",INDEX(Beslenme[],BeslenmeSonu-BeslenmeSatırBaşlangıcı-J10,6),NA())),NA()) -> 13.5 | H10: =IFERROR((IF(INDEX(Beslenme[],BeslenmeSonu-BeslenmeSatırBaşlangıcı-J10,1)<>"",INDEX(Beslenme[],BeslenmeSonu-BeslenmeSatırBaşlangıcı-J10,5),NA())),NA()) -> 62 | I10: =IFERROR((IF(INDEX(Beslenme[],BeslenmeSonu-BeslenmeSatırBaşlangıcı-J10,1)<>"",INDEX(Beslenme[],BeslenmeSonu-BeslenmeSatırBaşlangıcı-J10,4),NA())),NA()) -> 477 | J10: 7
D11: =IFERROR(IF(INDEX(Beslenme[],BeslenmeSonu-BeslenmeSatırBaşlangıcı-J11,1)<>"",INDEX(Beslenme[],BeslenmeSonu-BeslenmeSatırBaşlangıcı-J11,1),""),"") -> 2017-05-11 | E11: PER | F11: =IFERROR((IF(INDEX(Beslenme[],BeslenmeSonu-BeslenmeSatırBaşlangıcı-J11,1)<>"",INDEX(Beslenme[],BeslenmeSonu-BeslenmeSatırBaşlangıcı-J11,7),NA())),NA()) -> 0 | G11: =IFERROR((IF(INDEX(Beslenme[],BeslenmeSonu-BeslenmeSatırBaşlangıcı-J11,1)<>"",INDEX(Beslenme[],BeslenmeSonu-BeslenmeSatırBaşlangıcı-J11,6),NA())),NA()) -> 0 | H11: =IFERROR((IF(INDEX(Beslenme[],BeslenmeSonu-BeslenmeSatırBaşlangıcı-J11,1)<>"",INDEX(Beslenme[],BeslenmeSonu-BeslenmeSatırBaşlangıcı-J11,5),NA())),NA()) -> 0 | I11: =IFERROR((IF(INDEX(Beslenme[],BeslenmeSonu-BeslenmeSatırBaşlangıcı-J11,1)<>"",INDEX(Beslenme[],BeslenmeSonu-BeslenmeSatırBaşlangıcı-J11,4),NA())),NA()) -> 1 | J11: 6
D12: =IFERROR(IF(INDEX(Beslenme[],BeslenmeSonu-BeslenmeSatırBaşlangıcı-J12,1)<>"",INDEX(Beslenme[],BeslenmeSonu-BeslenmeSatırBaşlangıcı-J12,1),""),"") -> 2017-05-11 | E12: PER | F12: =IFERROR((IF(INDEX(Beslenme[],BeslenmeSonu-BeslenmeSatırBaşlangıcı-J12,1)<>"",INDEX(Beslenme[],BeslenmeSonu-BeslenmeSatırBaşlangıcı-J12,7),NA())),NA()) -> 1.5 | G12: =IFERROR((IF(INDEX(Beslenme[],BeslenmeSonu-BeslenmeSatırBaşlangıcı-J12,1)<>"",INDEX(Beslenme[],BeslenmeSonu-BeslenmeSatırBaşlangıcı-J12,6),NA())),NA()) -> 10 | H12: =IFERROR((IF(INDEX(Beslenme[],BeslenmeSonu-BeslenmeSatırBaşlangıcı-J12,1)<>"",INDEX(Beslenme[],BeslenmeSonu-BeslenmeSatırBaşlangıcı-J12,5),NA())),NA()) -> 48 | I12: =IFERROR((IF(INDEX(Beslenme[],BeslenmeSonu-BeslenmeSatırBaşlangıcı-J12,1)<>"",INDEX(Beslenme[],BeslenmeSonu-BeslenmeSatırBaşlangıcı-J12,4),NA())),NA()) -> 245 | J12: 5
D13: =IFERROR(IF(INDEX(Beslenme[],BeslenmeSonu-BeslenmeSatırBaşlangıcı-J13,1)<>"",INDEX(Beslenme[],BeslenmeSonu-BeslenmeSatırBaşlangıcı-J13,1),""),"") -> 2017-05-11 | E13: PER | F13: =IFERROR((IF(INDEX(Beslenme[],BeslenmeSonu-BeslenmeSatırBaşlangıcı-J13,1)<>"",INDEX(Beslenme[],BeslenmeSonu-BeslenmeSatırBaşlangıcı-J13,7),NA())),NA()) -> 5 | G13: =IFERROR((IF(INDEX(Beslenme[],BeslenmeSonu-BeslenmeSatırBaşlangıcı-J13,1)<>"",INDEX(Beslenme[],BeslenmeSonu-BeslenmeSatırBaşlangıcı-J13,6),NA())),NA()) -> 43 | H13: =IFERROR((IF(INDEX(Beslenme[],BeslenmeSonu-BeslenmeSatırBaşlangıcı-J13,1)<>"",INDEX(Beslenme[],BeslenmeSonu-BeslenmeSatırBaşlangıcı-J13,5),NA())),NA()) -> 11 | I13: =IFERROR((IF(INDEX(Beslenme[],BeslenmeSonu-BeslenmeSatırBaşlangıcı-J13,1)<>"",INDEX(Beslenme[],BeslenmeSonu-BeslenmeSatırBaşlangıcı-J13,4),NA())),NA()) -> 247 | J13: 4
D14: =IFERROR(IF(INDEX(Beslenme[],BeslenmeSonu-BeslenmeSatırBaşlangıcı-J14,1)<>"",INDEX(Beslenme[],BeslenmeSonu-BeslenmeSatırBaşlangıcı-J14,1),""),"") -> 2017-05-11 | E14: PER | F14: =IFERROR((IF(INDEX(Beslenme[],BeslenmeSonu-BeslenmeSatırBaşlangıcı-J14,1)<>"",INDEX(Beslenme[],BeslenmeSonu-BeslenmeSatırBaşlangıcı-J14,7),NA())),NA()) -> 22 | G14: =IFERROR((IF(INDEX(Beslenme[],BeslenmeSonu-BeslenmeSatırBaşlangıcı-J14,1)<>"",INDEX(Beslenme[],BeslenmeSonu-BeslenmeSatırBaşlangıcı-J14,6),NA())),NA()) -> 32 | H14: =IFERROR((IF(INDEX(Beslenme[],BeslenmeSonu-BeslenmeSatırBaşlangıcı-J14,1)<>"",INDEX(Beslenme[],BeslenmeSonu-BeslenmeSatırBaşlangıcı-J14,5),NA())),NA()) -> 64 | I14: =IFERROR((IF(INDEX(Beslenme[],BeslenmeSonu-BeslenmeSatırBaşlangıcı-J14,1)<>"",INDEX(Beslenme[],BeslenmeSonu-BeslenmeSatırBaşlangıcı-J14,4),NA())),NA()) -> 456 | J14: 3
D15: =IFERROR(IF(INDEX(Beslenme[],BeslenmeSonu-BeslenmeSatırBaşlangıcı-J15,1)<>"",INDEX(Beslenme[],BeslenmeSonu-BeslenmeSatırBaşlangıcı-J15,1),""),"") -> 2017-05-12 | E15: CUM | F15: =IFERROR((IF(INDEX(Beslenme[],BeslenmeSonu-BeslenmeSatırBaşlangıcı-J15,1)<>"",INDEX(Beslenme[],BeslenmeSonu-BeslenmeSatırBaşlangıcı-J15,7),NA())),NA()) -> 10 | G15: =IFERROR((IF(INDEX(Beslenme[],BeslenmeSonu-BeslenmeSatırBaşlangıcı-J15,1)<>"",INDEX(Beslenme[],BeslenmeSonu-BeslenmeSatırBaşlangıcı-J15,6),NA())),NA()) -> 2 | H15: =IFERROR((IF(INDEX(Beslenme[],BeslenmeSonu-BeslenmeSatırBaşlangıcı-J15,1)<>"",INDEX(Beslenme[],BeslenmeSonu-BeslenmeSatırBaşlangıcı-J15,5),NA())),NA()) -> 10 | I15: =IFERROR((IF(INDEX(Beslenme[],BeslenmeSonu-BeslenmeSatırBaşlangıcı-J15,1)<>"",INDEX(Beslenme[],BeslenmeSonu-BeslenmeSatırBaşlangıcı-J15,4),NA())),NA()) -> 10 | J15: 2
D16: =IFERROR(IF(INDEX(Beslenme[],BeslenmeSonu-BeslenmeSatırBaşlangıcı-J16,1)<>"",INDEX(Beslenme[],BeslenmeSonu-BeslenmeSatırBaşlangıcı-J16,1),""),"") -> 2017-05-12 | E16: CUM | F16: =IFERROR((IF(INDEX(Beslenme[],BeslenmeSonu-BeslenmeSatırBaşlangıcı-J16,1)<>"",INDEX(Beslenme[],BeslenmeSonu-BeslenmeSatırBaşlangıcı-J16,7),NA())),NA()) -> 5.51 | G16: =IFERROR((IF(INDEX(Beslenme[],BeslenmeSonu-BeslenmeSatırBaşlangıcı-J16,1)<>"",INDEX(Beslenme[],BeslenmeSonu-BeslenmeSatırBaşlangıcı-J16,6),NA())),NA()) -> 8.81 | H16: =IFERROR((IF(INDEX(Beslenme[],BeslenmeSonu-BeslenmeSatırBaşlangıcı-J16,1)<>"",INDEX(Beslenme[],BeslenmeSonu-BeslenmeSatırBaşlangıcı-J16,5),NA())),NA()) -> 12.36 | I16: =IFERROR((IF(INDEX(Beslenme[],BeslenmeSonu-BeslenmeSatırBaşlangıcı-J16,1)<>"",INDEX(Beslenme[],BeslenmeSonu-BeslenmeSatırBaşlangıcı-J16,4),NA())),NA()) -> 135 | J16: 1
D17: =IFERROR(IF(INDEX(Beslenme[],BeslenmeSonu-BeslenmeSatırBaşlangıcı-J17,1)<>"",INDEX(Beslenme[],BeslenmeSonu-BeslenmeSatırBaşlangıcı-J17,1),""),"") -> 2017-05-12 | E17: CUM | F17: =IFERROR((IF(INDEX(Beslenme[],BeslenmeSonu-BeslenmeSatırBaşlangıcı-J17,1)<>"",INDEX(Beslenme[],BeslenmeSonu-BeslenmeSatırBaşlangıcı-J17,7),NA())),NA()) -> 15 | G17: =IFERROR((IF(INDEX(Beslenme[],BeslenmeSonu-BeslenmeSatırBaşlangıcı-J17,1)<>"",INDEX(Beslenme[],BeslenmeSonu-BeslenmeSatırBaşlangıcı-J17,6),NA())),NA()) -> 5.43 | H17: =IFERROR((IF(INDEX(Beslenme[],BeslenmeSonu-BeslenmeSatırBaşlangıcı-J17,1)<>"",INDEX(Beslenme[],BeslenmeSonu-BeslenmeSatırBaşlangıcı-J17,5),NA())),NA()) -> 7 | I17: =IFERROR((IF(INDEX(Beslenme[],BeslenmeSonu-BeslenmeSatırBaşlangıcı-J17,1)<>"",INDEX(Beslenme[],BeslenmeSonu-BeslenmeSatırBaşlangıcı-J17,4),NA())),NA()) -> 184 | J17: 0
D18: =IFERROR(IF(INDEX(Beslenme[],BeslenmeSonu-BeslenmeSatırBaşlangıcı-J18,1)<>"",INDEX(Beslenme[],BeslenmeSonu-BeslenmeSatırBaşlangıcı-J18,1),""),"") -> 2017-05-14 | E18: PAZ | F18: =IFERROR((IF(INDEX(Beslenme[],BeslenmeSonu-BeslenmeSatırBaşlangıcı-J18,1)<>"",INDEX(Beslenme[],BeslenmeSonu-BeslenmeSatırBaşlangıcı-J18,7),NA())),NA()) -> 21 | G18: =IFERROR((IF(INDEX(Beslenme[],BeslenmeSonu-BeslenmeSatırBaşlangıcı-J18,1)<>"",INDEX(Beslenme[],BeslenmeSonu-BeslenmeSatırBaşlangıcı-J18,6),NA())),NA()) -> 13.5 | H18: =IFERROR((IF(INDEX(Beslenme[],BeslenmeSonu-BeslenmeSatırBaşlangıcı-J18,1)<>"",INDEX(Beslenme[],BeslenmeSonu-BeslenmeSatırBaşlangıcı-J18,5),NA())),NA()) -> 62 | I18: =IFERROR((IF(INDEX(Beslenme[],BeslenmeSonu-BeslenmeSatırBaşlangıcı-J18,1)<>"",INDEX(Beslenme[],BeslenmeSonu-BeslenmeSatırBaşlangıcı-J18,4),NA())),NA()) -> 477 | J18: -1
B20: EGZERSİZ ANALİZİ GRAFİK VERİLERİ
B22: Başlangıçta satırı | C22: =ROW(Egzersiz[[#Headers],[TARİH]])+1 -> 4 | D22: TARİH | E22: GÜN | F22: SÜRE (DAKİKA) | G22: YAKILAN KALORİ | H22: Sayı
B23: Son egzersiz girdisi | C23: =MATCH(9.99E+307,Egzersiz[TARİH])+EgzersizSatırBaşlangıcı-1 -> 20 | D23: =IFERROR(IF(INDEX(Egzersiz[],EgzersizSonu-EgzersizSatırBaşlangıcı-H23,1)<>"",INDEX(Egzersiz[],EgzersizSonu-EgzersizSatırBaşlangıcı-H23,1)),"") -> 2017-05-29 | E23: =UPPER(TEXT(D23,"GGG")) -> PZT | F23: =IFERROR((IF(INDEX(Egzersiz[],EgzersizSonu-EgzersizSatırBaşlangıcı-H23,1)<>"",INDEX(Egzersiz[],EgzersizSonu-EgzersizSatırBaşlangıcı-H23,2),0)),0) -> 20 | G23: =IFERROR((IF(INDEX(Egzersiz[],EgzersizSonu-EgzersizSatırBaşlangıcı-H23,2)<>"",INDEX(Egzersiz[],EgzersizSonu-EgzersizSatırBaşlangıcı-H23,3),0)),0) -> 195 | H23: -1
D24: =IFERROR(IF(INDEX(Egzersiz[],EgzersizSonu-EgzersizSatırBaşlangıcı-H24,1)<>"",INDEX(Egzersiz[],EgzersizSonu-EgzersizSatırBaşlangıcı-H24,1)),"") -> 2017-05-28 | E24: =UPPER(TEXT(D24,"GGG")) -> PAZ | F24: =IFERROR((IF(INDEX(Egzersiz[],EgzersizSonu-EgzersizSatırBaşlangıcı-H24,1)<>"",INDEX(Egzersiz[],EgzersizSonu-EgzersizSatırBaşlangıcı-H24,2),0)),0) -> 25 | G24: =IFERROR((IF(INDEX(Egzersiz[],EgzersizSonu-EgzersizSatırBaşlangıcı-H24,2)<>"",INDEX(Egzersiz[],EgzersizSonu-EgzersizSatırBaşlangıcı-H24,3),0)),0) -> 265 | H24: 0
D25: =IFERROR(IF(INDEX(Egzersiz[],EgzersizSonu-EgzersizSatırBaşlangıcı-H25,1)<>"",INDEX(Egzersiz[],EgzersizSonu-EgzersizSatırBaşlangıcı-H25,1)),"") -> 2017-05-27 | E25: CMT | F25: =IFERROR((IF(INDEX(Egzersiz[],EgzersizSonu-EgzersizSatırBaşlangıcı-H25,1)<>"",INDEX(Egzersiz[],EgzersizSonu-EgzersizSatırBaşlangıcı-H25,2),0)),0) -> 40 | G25: =IFERROR((IF(INDEX(Egzersiz[],EgzersizSonu-EgzersizSatırBaşlangıcı-H25,2)<>"",INDEX(Egzersiz[],EgzersizSonu-EgzersizSatırBaşlangıcı-H25,3),0)),0) -> 290 | H25: 1
D26: =IFERROR(IF(INDEX(Egzersiz[],EgzersizSonu-EgzersizSatırBaşlangıcı-H26,1)<>"",INDEX(Egzersiz[],EgzersizSonu-EgzersizSatırBaşlangıcı-H26,1)),"") -> 2017-05-26 | E26: CUM | F26: =IFERROR((IF(INDEX(Egzersiz[],EgzersizSonu-EgzersizSatırBaşlangıcı-H26,1)<>"",INDEX(Egzersiz[],EgzersizSonu-EgzersizSatırBaşlangıcı-H26,2),0)),0) -> 35 | G26: =IFERROR((IF(INDEX(Egzersiz[],EgzersizSonu-EgzersizSatırBaşlangıcı-H26,2)<>"",INDEX(Egzersiz[],EgzersizSonu-EgzersizSatırBaşlangıcı-H26,3),0)),0) -> 320 | H26: 2
D27: =IFERROR(IF(INDEX(Egzersiz[],EgzersizSonu-EgzersizSatırBaşlangıcı-H27,1)<>"",INDEX(Egzersiz[],EgzersizSonu-EgzersizSatırBaşlangıcı-H27,1)),"") -> 2017-05-25 | E27: PER | F27: =IFERROR((IF(INDEX(Egzersiz[],EgzersizSonu-EgzersizSatırBaşlangıcı-H27,1)<>"",INDEX(Egzersiz[],EgzersizSonu-EgzersizSatırBaşlangıcı-H27,2),0)),0) -> 45 | G27: =IFERROR((IF(INDEX(Egzersiz[],EgzersizSonu-EgzersizSatırBaşlangıcı-H27,2)<>"",INDEX(Egzersiz[],EgzersizSonu-EgzersizSatırBaşlangıcı-H27,3),0)),0) -> 350 | H27: 3
D28: =IFERROR(IF(INDEX(Egzersiz[],EgzersizSonu-EgzersizSatırBaşlangıcı-H28,1)<>"",INDEX(Egzersiz[],EgzersizSonu-EgzersizSatırBaşlangıcı-H28,1)),"") -> 2017-05-24 | E28: ÇAR | F28: =IFERROR((IF(INDEX(Egzersiz[],EgzersizSonu-EgzersizSatırBaşlangıcı-H28,1)<>"",INDEX(Egzersiz[],EgzersizSonu-EgzersizSatırBaşlangıcı-H28,2),0)),0) -> 20 | G28: =IFERROR((IF(INDEX(Egzersiz[],EgzersizSonu-EgzersizSatırBaşlangıcı-H28,2)<>"",INDEX(Egzersiz[],EgzersizSonu-EgzersizSatırBaşlangıcı-H28,3),0)),0) -> 295 | H28: 4
D29: =IFERROR(IF(INDEX(Egzersiz[],EgzersizSonu-EgzersizSatırBaşlangıcı-H29,1)<>"",INDEX(Egzersiz[],EgzersizSonu-EgzersizSatırBaşlangıcı-H29,1)),"") -> 2017-05-23 | E29: SAL | F29: =IFERROR((IF(INDEX(Egzersiz[],EgzersizSonu-EgzersizSatırBaşlangıcı-H29,1)<>"",INDEX(Egzersiz[],EgzersizSonu-EgzersizSatırBaşlangıcı-H29,2),0)),0) -> 40 | G29: =IFERROR((IF(INDEX(Egzersiz[],EgzersizSonu-EgzersizSatırBaşlangıcı-H29,2)<>"",INDEX(Egzersiz[],EgzersizSonu-EgzersizSatırBaşlangıcı-H29,3),0)),0) -> 270 | H29: 5
D30: =IFERROR(IF(INDEX(Egzersiz[],EgzersizSonu-EgzersizSatırBaşlangıcı-H30,1)<>"",INDEX(Egzersiz[],EgzersizSonu-EgzersizSatırBaşlangıcı-H30,1)),"") -> 2017-05-22 | E30: PZT | F30: =IFERROR((IF(INDEX(Egzersiz[],EgzersizSonu-EgzersizSatırBaşlangıcı-H30,1)<>"",INDEX(Egzersiz[],EgzersizSonu-EgzersizSatırBaşlangıcı-H30,2),0)),0) -> 45 | G30: =IFERROR((IF(INDEX(Egzersiz[],EgzersizSonu-EgzersizSatırBaşlangıcı-H30,2)<>"",INDEX(Egzersiz[],EgzersizSonu-EgzersizSatırBaşlangıcı-H30,3),0)),0) -> 325 | H30: 6
D31: =IFERROR(IF(INDEX(Egzersiz[],EgzersizSonu-EgzersizSatırBaşlangıcı-H31,1)<>"",INDEX(Egzersiz[],EgzersizSonu-EgzersizSatırBaşlangıcı-H31,1)),"") -> 2017-05-21 | E31: PAZ | F31: =IFERROR((IF(INDEX(Egzersiz[],EgzersizSonu-EgzersizSatırBaşlangıcı-H31,1)<>"",INDEX(Egzersiz[],EgzersizSonu-EgzersizSatırBaşlangıcı-H31,2),0)),0) -> 40 | G31: =IFERROR((IF(INDEX(Egzersiz[],EgzersizSonu-EgzersizSatırBaşlangıcı-H31,2)<>"",INDEX(Egzersiz[],EgzersizSonu-EgzersizSatırBaşlangıcı-H31,3),0)),0) -> 175 | H31: 7
D32: =IFERROR(IF(INDEX(Egzersiz[],EgzersizSonu-EgzersizSatırBaşlangıcı-H32,1)<>"",INDEX(Egzersiz[],EgzersizSonu-EgzersizSatırBaşlangıcı-H32,1)),"") -> 2017-05-20 | E32: CMT | F32: =IFERROR((IF(INDEX(Egzersiz[],EgzersizSonu-EgzersizSatırBaşlangıcı-H32,1)<>"",INDEX(Egzersiz[],EgzersizSonu-EgzersizSatırBaşlangıcı-H32,2),0)),0) -> 30 | G32: =IFERROR((IF(INDEX(Egzersiz[],EgzersizSonu-EgzersizSatırBaşlangıcı-H32,2)<>"",INDEX(Egzersiz[],EgzersizSonu-EgzersizSatırBaşlangıcı-H32,3),0)),0) -> 335 | H32: 8
D33: =IFERROR(IF(INDEX(Egzersiz[],EgzersizSonu-EgzersizSatırBaşlangıcı-H33,1)<>"",INDEX(Egzersiz[],EgzersizSonu-EgzersizSatırBaşlangıcı-H33,1)),"") -> 2017-05-19 | E33: CUM | F33: =IFERROR((IF(INDEX(Egzersiz[],EgzersizSonu-EgzersizSatırBaşlangıcı-H33,1)<>"",INDEX(Egzersiz[],EgzersizSonu-EgzersizSatırBaşlangıcı-H33,2),0)),0) -> 40 | G33: =IFERROR((IF(INDEX(Egzersiz[],EgzersizSonu-EgzersizSatırBaşlangıcı-H33,2)<>"",INDEX(Egzersiz[],EgzersizSonu-EgzersizSatırBaşlangıcı-H33,3),0)),0) -> 205 | H33: 9
D34: =IFERROR(IF(INDEX(Egzersiz[],EgzersizSonu-EgzersizSatırBaşlangıcı-H34,1)<>"",INDEX(Egzersiz[],EgzersizSonu-EgzersizSatırBaşlangıcı-H34,1)),"") -> 2017-05-18 | E34: PER | F34: =IFERROR((IF(INDEX(Egzersiz[],EgzersizSonu-EgzersizSatırBaşlangıcı-H34,1)<>"",INDEX(Egzersiz[],EgzersizSonu-EgzersizSatırBaşlangıcı-H34,2),0)),0) -> 20 | G34: =IFERROR((IF(INDEX(Egzersiz[],EgzersizSonu-EgzersizSatırBaşlangıcı-H34,2)<>"",INDEX(Egzersiz[],EgzersizSonu-EgzersizSatırBaşlangıcı-H34,3),0)),0) -> 285 | H34: 10
D35: =IFERROR(IF(INDEX(Egzersiz[],EgzersizSonu-EgzersizSatırBaşlangıcı-H35,1)<>"",INDEX(Egzersiz[],EgzersizSonu-EgzersizSatırBaşlangıcı-H35,1)),"") -> 2017-05-17 | E35: ÇAR | F35: =IFERROR((IF(INDEX(Egzersiz[],EgzersizSonu-EgzersizSatırBaşlangıcı-H35,1)<>"",INDEX(Egzersiz[],EgzersizSonu-EgzersizSatırBaşlangıcı-H35,2),0)),0) -> 25 | G35: =IFERROR((IF(INDEX(Egzersiz[],EgzersizSonu-EgzersizSatırBaşlangıcı-H35,2)<>"",INDEX(Egzersiz[],EgzersizSonu-EgzersizSatırBaşlangıcı-H35,3),0)),0) -> 125 | H35: 11
D36: =IFERROR(IF(INDEX(Egzersiz[],EgzersizSonu-EgzersizSatırBaşlangıcı-H36,1)<>"",INDEX(Egzersiz[],EgzersizSonu-EgzersizSatırBaşlangıcı-H36,1)),"") -> 2017-05-16 | E36: SAL | F36: =IFERROR((IF(INDEX(Egzersiz[],EgzersizSonu-EgzersizSatırBaşlangıcı-H36,1)<>"",INDEX(Egzersiz[],EgzersizSonu-EgzersizSatırBaşlangıcı-H36,2),0)),0) -> 30 | G36: =IFERROR((IF(INDEX(Egzersiz[],EgzersizSonu-EgzersizSatırBaşlangıcı-H36,2)<>"",INDEX(Egzersiz[],EgzersizSonu-EgzersizSatırBaşlangıcı-H36,3),0)),0) -> 150 | H36: 12
